fUSD/lending_fUSD_20250923
["ID","MTS","AMOUNT","RATE_DAILY","PERIOD"]
[387258209,1758664507144,-1583.84,0.00030684,3]
[387258210,1758664507153,-2011.79,0.00030684,3]
[387258211,1758664507163,-444.2,0.00030684,3]
[387258212,1758664507172,-1424.75,0.00030684,3]
[387258213,1758664507182,-814.88,0.00030684,3]
[387258214,1758664507192,-1011.39,0.00030684,3]
[387258215,1758664507201,-1854.54,0.00030684,3]
[387258216,1758664507210,-2063.59,0.00030684,3]
[387258217,1758664507220,-821.38,0.00030684,3]
[387258218,1758664507230,-746.48,0.00030684,3]
[387258219,1758664507239,-1885.78,0.00030684,3]
[387258220,1758664507248,-1127.50885607,0.00030684,3]
[387258221,1758664507336,-269.816212,0.00024831,7]
[387258222,1758664507345,-151.0,0.00024831,7]
[387258223,1758664507355,-3779.62863851,0.00025205,3]
[387258224,1758664507366,-3086.3490593,0.00025205,3]
[387258225,1758664507399,-506.0576,0.00024931,7]
[387258226,1758664507409,-1726.22230219,0.00025205,3]
[387258227,1758664507419,-78.87395231,0.00025205,3]
[387258228,1758664507430,-164.81301502,0.00025205,3]
[387258229,1758664507445,-592.88498484,0.00025753,3]
[387258230,1758664508245,-1002.3364148,0.0002422,2]
[387258231,1758664508257,-106963.18391022,0.0002422,2]
[387258232,1758664508301,-2500.0,0.0002422,2]
[387258233,1758664508345,-13070.57779785,0.0002422,2]
[387258234,1758664509342,-551.994769,0.00022451,2]
[387258235,1758664509354,-400.0,0.00022451,2]
[387258236,1758664509365,-957.527663,0.00022451,2]
[387258237,1758664509377,-699.39,0.00022451,2]
[387258238,1758664509389,-8647.57517065,0.00022451,2]
[387258239,1758664509418,-6704.44021556,0.00022451,2]
[387258240,1758664509428,-10897.30315373,0.0002422,2]
[387258241,1758664509444,-80593.50566304,0.0002422,2]
[387258242,1758664509455,-7390.65840366,0.0002422,2]
[387258243,1758664509473,-20117.80462362,0.0002422,2]
[387258244,1758664509484,-506.0576,0.00024657,7]
[387258245,1758664509494,-400.0,0.00024657,3]
[387258246,1758664509503,-533.33,0.00024657,3]
[387258247,1758664509514,-506.0576,0.00024657,7]
[387258248,1758664509524,-151.0,0.00024657,7]
[387258249,1758664509533,-166.002023,0.00024657,7]
[387258250,1758664509543,-151.0,0.00024657,7]
[387258251,1758664509552,-400.0,0.00024657,3]
[387258252,1758664509562,-400.0,0.00024657,3]
[387258253,1758664509572,-506.0576,0.00024657,7]
[387258254,1758664509582,-166.002023,0.00024657,7]
[387258255,1758664509592,-400.0,0.00024657,3]
[387258256,1758664509602,-151.0,0.00024657,7]
[387258257,1758664509612,-166.002023,0.00024657,7]
[387258258,1758664509622,-506.0576,0.00024799,7]
[387258259,1758664509631,-506.0576,0.00024799,7]
[387258260,1758664509641,-168.347249,0.00024799,7]
[387258261,1758664509650,-166.002023,0.00024799,7]
[387258262,1758664509660,-151.0,0.00024799,7]
[387258263,1758664509670,-506.0576,0.00024799,7]
[387258264,1758664509680,-166.002023,0.00024799,7]
[387258265,1758664509690,-151.0,0.00024799,7]
[387258266,1758664509699,-166.002023,0.00024799,7]
[387258267,1758664509710,-506.0576,0.00024831,7]
[387258268,1758664509720,-506.0576,0.00024831,7]
[387258269,1758664509732,-166.002023,0.00024831,7]
[387258270,1758664509741,-151.0,0.00024831,7]
[387258271,1758664509750,-506.0576,0.00024831,7]
[387258272,1758664509760,-166.002023,0.00024831,7]
[387258273,1758664509769,-151.0,0.00024831,7]
[387258274,1758664509779,-9824.68826968,0.00024831,2]
[387258275,1758664509789,-151.0,0.00024931,7]
[387258276,1758664509799,-269.816212,0.00024931,7]
[387258277,1758664509809,-269.81622,0.00024931,7]
[387258278,1758664509819,-506.0576,0.00024931,7]
[387258279,1758664509828,-506.0576,0.00024931,7]
[387258280,1758664509839,-506.0576,0.00024931,7]
[387258281,1758664509848,-136.59434469,0.00024931,7]
[387258282,1758664509861,-369.46325531,0.00024931,7]
[387258283,1758664509871,-400.0,0.00024931,3]
[387258284,1758664509880,-166.002023,0.00024931,7]
[387258285,1758664509890,-239.53472169,0.00024931,3]
[387258286,1758664509902,-40.51527831,0.00024931,3]
[387258287,1758664509912,-166.002023,0.00024931,7]
[387258288,1758664509921,-151.0,0.00024931,7]
[387258289,1758664509931,-151.0,0.00024931,7]
[387258290,1758664509941,-225.66447184,0.00024931,3]
[387258291,1758664509953,-174.33552816,0.00024931,3]
[387258292,1758664509963,-506.0576,0.00024931,7]
[387258293,1758664509973,-166.002023,0.00024931,7]
[387258294,1758664509983,-454.98952299,0.00024931,7]
[387258295,1758664509994,-51.06807801,0.00024931,7]
[387258296,1758664510004,-166.002023,0.00024931,7]
[387258297,1758664510014,-400.0,0.00025205,3]
[387258298,1758664510024,-400.0,0.00025205,3]
[387258299,1758664510034,-4030.75005656,0.00025479,3]
[387258300,1758664539654,468.22,0.00011393,2]
[387258301,1758664539698,468.22,0.00011993,2]
[387258302,1758664539771,468.22,0.00012592,2]
[387258303,1758664539808,468.22,0.00013192,2]
[387258304,1758664539862,468.22,0.00013792,2]
[387258305,1758664539896,468.22,0.00014391,2]
[387258306,1758664539934,468.22,0.00014991,2]
[387258307,1758664539980,228.06366678,0.0001559,2]
[387258308,1758664540004,240.15633322,0.0001559,2]
[387258309,1758664540059,468.22,0.0001619,2]
[387258310,1758664540101,468.22,0.0001679,2]
[387258311,1758664540211,468.22,0.00017389,2]
[387258312,1758664540251,468.22,0.00017989,2]
[387258313,1758664545983,500.0,0.00013699,2]
[387258314,1758664546337,-228.06366678,0.00018589,2]
[387258315,1758664550054,250.0,0.00012532,2]
[387258316,1758664550118,-228.06366678,0.00018589,2]
[387258317,1758664551166,172.3,0.00016716,2]
[387258318,1758664551570,-12.09266644,0.00018589,2]
[387258319,1758664553287,150.0,0.00030136,120]
[387258320,1758664623201,225.74131211,0.00016438,2]
[387258321,1758664748465,163.59,0.00022106,30]
[387258322,1758665292894,-1000.0,0.00018765,3]
[387258323,1758665355888,205.09670429,0.00030136,120]
[387258325,1758665431775,-506.183,0.00018765,3]
[387258326,1758665431785,-3231.53898029,0.00019088,2]
[387258327,1758665431795,-151.0,0.00019188,2]
[387258328,1758665431807,-468.22,0.00019188,2]
[387258329,1758665431817,-151.0,0.00019478,2]
[387258330,1758665431827,-151.0,0.00019481,2]
[387258331,1758665431836,-232.50567928,0.00019736,2]
[387258332,1758665431847,-468.22,0.00019788,2]
[387258333,1758665431857,-300.0,0.00019798,2]
[387258334,1758665431866,-300.0,0.00019799,2]
[387258335,1758665431877,-1200.0,0.00019799,2]
[387258336,1758665431887,-2317.5504,0.000198,2]
[387258337,1758665431897,-232.5392,0.000198,2]
[387258338,1758665431907,-277.6229,0.000198,2]
[387258339,1758665431916,-4192.18610582,0.000198,2]
[387258340,1758665431926,-583.84,0.0001989,2]
[387258341,1758665431935,-233.23037456,0.00019898,2]
[387258342,1758665431944,-500.0,0.00019898,2]
[387258344,1758665431954,-500.0,0.00019898,2]
[387258346,1758665431964,-500.0,0.00019898,2]
[387258348,1758665431973,-332.14294014,0.00019899,2]
[387258350,1758665431983,-500.0,0.00019899,2]
[387258352,1758665431992,-206.94268042,0.00019899,2]
[387258354,1758665432002,-168.76082082,0.00019899,2]
[387258356,1758665432011,-500.0,0.00019899,2]
[387258358,1758665432021,-2000.0,0.000199,2]
[387258359,1758665432030,-1000.0,0.000199,2]
[387258360,1758665432040,-1083.74599063,0.000199,2]
[387258361,1758665432051,-8092.8701641,0.000199,2]
[387258371,1758665432175,-500.0,0.00019898,2]
[387258373,1758665432185,-500.0,0.00019898,2]
[387258375,1758665432195,-500.0,0.00019898,2]
[387258377,1758665432205,-500.0,0.00019898,2]
[387258379,1758665432214,-500.0,0.00019898,2]
[387258381,1758665432225,-500.0,0.00019898,2]
[387258383,1758665432235,-273.57376198,0.00019898,2]
[387258385,1758665432244,-379.57303491,0.00019898,2]
[387258387,1758665432254,-305.53123113,0.00019898,2]
[387258389,1758665432264,-500.0,0.00019898,2]
[387258391,1758665432274,-500.0,0.00019898,2]
[387258393,1758665432283,-14775.06630606,0.000199,2]
[387258506,1758665437382,-500.0,0.00019898,2]
[387258507,1758665437391,-500.0,0.00019898,2]
[387258508,1758665437401,-500.0,0.00019898,2]
[387258509,1758665437410,-500.0,0.00019898,2]
[387258510,1758665437420,-602.51289436,0.00019898,2]
[387258511,1758665437429,-500.0,0.00019898,2]
[387258512,1758665437438,-500.0,0.00019898,2]
[387258513,1758665437447,-500.0,0.00019898,2]
[387258514,1758665437456,-500.0,0.00019898,2]
[387258515,1758665437465,-500.0,0.00019898,2]
[387258516,1758665437474,-500.0,0.00019898,2]
[387258517,1758665437484,-500.0,0.00019898,2]
[387258518,1758665437492,-500.0,0.00019898,2]
[387258519,1758665437501,-500.0,0.00019898,2]
[387258520,1758665437510,-500.0,0.00019898,2]
[387258521,1758665437520,-500.0,0.00019898,2]
[387258522,1758665437529,-500.0,0.00019898,2]
[387258523,1758665437537,-500.0,0.00019898,2]
[387258524,1758665437548,-500.0,0.00019898,2]
[387258525,1758665437557,-500.0,0.00019898,2]
[387258526,1758665437566,-500.0,0.00019898,2]
[387258527,1758665437574,-500.0,0.00019898,2]
[387258528,1758665437584,-500.0,0.00019898,2]
[387258529,1758665437593,-500.0,0.00019898,2]
[387258530,1758665437603,-500.0,0.00019898,2]
[387258531,1758665437612,-500.0,0.00019898,2]
[387258532,1758665437621,-500.0,0.00019898,2]
[387258533,1758665437630,-500.0,0.00019898,2]
[387258534,1758665437639,-500.0,0.00019898,2]
[387258535,1758665437648,-408.56565667,0.00019898,2]
[387258536,1758665437658,-500.0,0.00019898,2]
[387258537,1758665437667,-500.0,0.00019898,2]
[387258538,1758665437676,-9339.94983921,0.000199,2]
[387258539,1758665437685,-1000.0,0.000199,2]
[387258540,1758665437695,-7779.48150489,0.000199,2]
[387258541,1758665437709,-8355.461751,0.000199,2]
[387258542,1758665437722,-36008.590824,0.000199,2]
[387258543,1758665437744,-6271.55225996,0.000199,2]
[387258544,1758665437756,-7382.73923511,0.000199,2]
[387258545,1758665437767,-400.0,0.000199,2]
[387258546,1758665437793,-18850.65709989,0.000199,2]
[387258547,1758665437820,-500.0,0.00019898,2]
[387258548,1758665437830,-2202.86530885,0.000199,2]
[387258549,1758665437875,-500.0,0.000199,2]
[387258636,1758665439460,-881.92,0.000199,2]
[387258637,1758665439563,-314.18204031,0.000199,2]
[387258638,1758665439574,-35526.57920579,0.000199,2]
[387258639,1758665439585,-18220.72600021,0.000199,2]
[387258640,1758665439596,-35460.36162864,0.000199,2]
[387258641,1758665439690,-13652.37494135,0.000199,2]
[387258642,1758665439699,-2500.0,0.000199,2]
[387258643,1758665439709,-500.0,0.000199,2]
[387258644,1758665439718,-400.0,0.000199,2]
[387258645,1758665439728,-1000.0,0.00019975,2]
[387258646,1758665439737,-1713.82,0.00019979,2]
[387258647,1758665439747,-2751.0,0.00020188,2]
[387258648,1758665439756,-250.0,0.00020275,2]
[387258649,1758665439765,-200.0,0.00020365,2]
[387258650,1758665439775,-468.22,0.00020388,2]
[387258651,1758665439784,-9394.71,0.00020463,2]
[387258652,1758665439793,-4192.18610573,0.00020572,2]
[387258653,1758665439804,-168.81,0.00020609,2]
[387258654,1758665439814,-250.0,0.00020642,2]
[387258655,1758665439824,-201.16,0.00020895,2]
[387258656,1758665439833,-200.0,0.00020895,2]
[387258657,1758665439843,-1277.21,0.00020895,2]
[387258658,1758665439852,-438.07,0.00020895,2]
[387258659,1758665439862,-468.22,0.00020987,2]
[387258660,1758665439872,-4192.18610573,0.00021344,2]
[387258661,1758665439883,-468.22,0.00021587,2]
[387258662,1758665439893,-1395.0,0.00021667,2]
[387258663,1758665439903,-516.64379166,0.00021667,2]
[387258664,1758665439913,-5000.0,0.00021918,2]
[387258665,1758665439923,-208.06649793,0.00021944,2]
[387258666,1758665439932,-3188.0,0.00022,3]
[387258668,1758665439942,-160.62,0.00022035,2]
[387258670,1758665439951,-150.0,0.00022036,2]
[387258672,1758665439961,-1449.24,0.00022036,2]
[387258674,1758665439971,-4192.18610573,0.00022116,2]
[387258676,1758665439981,-500.0,0.00022123,2]
[387258678,1758665439990,-9369.53,0.00022125,2]
[387258679,1758665440000,-579.79,0.00022156,2]
[387258680,1758665440009,-249.96,0.00022164,2]
[387258681,1758665440019,-468.22,0.00022187,2]
[387258682,1758665440028,-173.02,0.00022457,2]
[387258683,1758665440037,-22076.24,0.00022485,7]
[387258684,1758665440047,-516.64379166,0.00022485,7]
[387258685,1758665440056,-168.09,0.00022615,2]
[387258686,1758665440066,-600.0,0.00022699,2]
[387258687,1758665440075,-468.22,0.00022786,2]
[387258688,1758665440085,-16481.85570106,0.00022807,2]
[387258689,1758665440094,-4192.18610573,0.00022888,2]
[387258690,1758665440104,-150.0,0.00022907,4]
[387258691,1758665440114,-150.0,0.00022907,4]
[387258692,1758665440123,-150.0,0.00022907,4]
[387258693,1758665440133,-150.0,0.00022907,4]
[387258694,1758665440143,-150.0,0.00022907,4]
[387258695,1758665440152,-150.0,0.00022907,4]
[387258696,1758665440162,-150.0,0.00022907,4]
[387258697,1758665440171,-150.0,0.00022907,4]
[387258698,1758665440181,-150.0,0.00022907,4]
[387258699,1758665440191,-150.0,0.00022907,4]
[387258700,1758665440201,-150.0,0.00022907,4]
[387258701,1758665440210,-150.0,0.00022907,4]
[387258702,1758665440219,-150.0,0.00022907,4]
[387258703,1758665440229,-8565.75555911,0.00022982,2]
[387258704,1758665440238,-8882.6885148,0.00023037,2]
[387258705,1758665440247,-2009.32186806,0.00023092,2]
[387258706,1758665440258,-150.0,0.00023126,7]
[387258707,1758665440267,-16481.85570104,0.00023245,2]
[387258708,1758665440277,-10000.0,0.00023353,2]
[387258709,1758665440287,-5000.0,0.00023353,2]
[387258710,1758665440296,-1000.0,0.000236,2]
[387258711,1758665440306,-4192.18610573,0.00023661,2]
[387258712,1758665440315,-16481.85570104,0.00023683,2]
[387258713,1758665440325,-200.0,0.00024098,2]
[387258714,1758665440334,-197.636,0.00024098,2]
[387258715,1758665440343,-200.148,0.00024098,2]
[387258716,1758665440353,-203.436,0.00024098,2]
[387258717,1758665440362,-1287.68,0.000241,2]
[387258718,1758665440372,-16481.85570104,0.00024121,2]
[387258719,1758665440382,-208.653,0.00024126,2]
[387258720,1758665440390,-298.98,0.00024126,2]
[387258721,1758665440400,-181.764,0.00024126,2]
[387258722,1758665440409,-187.405,0.00024153,2]
[387258723,1758665440419,-206.972,0.00024153,2]
[387258724,1758665440429,-150.0,0.00024179,4]
[387258725,1758665440439,-168.0,0.00024265,2]
[387258726,1758665440448,-344.17758467,0.00024309,2]
[387258727,1758665440458,-168.0,0.00024337,2]
[387258728,1758665440467,-344.17758467,0.00024345,2]
[387258729,1758665440476,-168.0,0.00024375,2]
[387258730,1758665440486,-344.17758467,0.00024422,2]
[387258731,1758665440495,-344.17758467,0.00024422,2]
[387258732,1758665440505,-4192.18610573,0.00024433,2]
[387258733,1758665440514,-344.17758467,0.00024436,2]
[387258734,1758665440523,-152.0,0.00024459,3]
[387258735,1758665440533,-344.17758467,0.00024463,2]
[387258736,1758665440542,-168.09,0.00024481,2]
[387258737,1758665440551,-344.17758467,0.00024493,2]
[387258738,1758665440560,-756.13394462,0.00024547,2]
[387258739,1758665440570,-168.0,0.00024549,2]
[387258740,1758665440579,-16481.85570104,0.00024559,2]
[387258741,1758665440588,-583.84,0.00024647,2]
[387258742,1758665440597,-365.055,0.00024656,2]
[387258743,1758665440607,-400.0,0.00024657,3]
[387258744,1758665440616,-741.2,0.00024657,3]
[387258745,1758665440625,-400.0,0.00024657,3]
[387258746,1758665440636,-400.0,0.00024657,3]
[387258747,1758665440645,-725.99,0.00024657,3]
[387258748,1758665440655,-400.0,0.00024657,3]
[387258749,1758665440665,-400.0,0.00024657,3]
[387258750,1758665440674,-400.0,0.00024657,3]
[387258751,1758665440683,-400.0,0.00024657,3]
[387258752,1758665440693,-400.0,0.00024657,3]
[387258753,1758665440702,-472.7,0.00024657,3]
[387258754,1758665440715,-397.82138647,0.00024657,3]
[387258755,1758665440724,-400.0,0.00024657,3]
[387258756,1758665440734,-400.0,0.00024657,3]
[387258757,1758665440744,-500.0,0.00024657,3]
[387258758,1758665440753,-400.0,0.00024657,3]
[387258759,1758665440763,-401.83800561,0.00024657,3]
[387258760,1758665440772,-400.0,0.00024657,3]
[387258761,1758665440782,-255.0004225,0.00024657,3]
[387258762,1758665440791,-245.37290858,0.00024657,3]
[387258763,1758665440810,-156.69416914,0.00024657,3]
[387258764,1758665440819,-400.0,0.00024657,3]
[387258765,1758665440829,-400.0,0.00024657,3]
[387258766,1758665440838,-400.0,0.00024657,3]
[387258767,1758665440849,-400.0,0.00024657,3]
[387258768,1758665440859,-279.86102626,0.00024657,3]
[387258769,1758665440868,-412.69874192,0.00024657,3]
[387258770,1758665440878,-400.0,0.00024657,3]
[387258771,1758665440887,-400.0,0.00024657,3]
[387258772,1758665440897,-400.0,0.00024657,3]
[387258773,1758665440907,-400.0,0.00024657,3]
[387258774,1758665440916,-400.0,0.00024657,3]
[387258775,1758665440926,-408.33151987,0.00024657,3]
[387258776,1758665440935,-413.99615876,0.00024657,3]
[387258777,1758665440945,-401.96378261,0.00024657,3]
[387258778,1758665440955,-400.0,0.00024657,3]
[387258779,1758665440964,-278.7506636,0.00024657,3]
[387258780,1758665440974,-400.0,0.00024657,3]
[387258781,1758665440983,-400.0,0.00024657,3]
[387258782,1758665440993,-400.0,0.00024657,3]
[387258783,1758665441002,-400.0,0.00024657,3]
[387258784,1758665441012,-411.5616684,0.00024657,3]
[387258785,1758665441021,-405.96974686,0.00024657,3]
[387258786,1758665441031,-400.0,0.00024657,3]
[387258787,1758665441040,-400.0,0.00024657,3]
[387258788,1758665441049,-400.0,0.00024657,3]
[387258789,1758665441058,-400.0,0.00024657,3]
[387258790,1758665441067,-400.0,0.00024657,3]
[387258791,1758665441076,-400.0,0.00024657,3]
[387258792,1758665441086,-515.04809183,0.00024657,3]
[387258793,1758665441096,-400.0,0.00024657,3]
[387258794,1758665441105,-400.0,0.00024657,3]
[387258795,1758665441114,-400.0,0.00024657,3]
[387258796,1758665441123,-1105.82,0.00024657,3]
[387258797,1758665441133,-400.0,0.00024657,3]
[387258798,1758665441142,-400.0,0.00024657,3]
[387258799,1758665441152,-400.0,0.00024657,3]
[387258800,1758665441161,-400.0,0.00024657,3]
[387258801,1758665441171,-400.0,0.00024657,3]
[387258802,1758665441179,-400.0,0.00024657,3]
[387258803,1758665441189,-400.0,0.00024657,3]
[387258804,1758665441198,-424.26,0.00024657,3]
[387258805,1758665441208,-400.0,0.00024657,3]
[387258806,1758665441217,-523.16170889,0.00024657,3]
[387258807,1758665441226,-400.0,0.00024657,3]
[387258808,1758665441235,-400.0,0.00024657,3]
[387258809,1758665441244,-400.0,0.00024657,3]
[387258810,1758665441254,-400.0,0.00024657,3]
[387258811,1758665441263,-500.0,0.00024657,3]
[387258812,1758665441272,-400.0,0.00024657,3]
[387258813,1758665441281,-453.76,0.00024657,3]
[387258814,1758665441291,-400.0,0.00024657,3]
[387258815,1758665441300,-400.0,0.00024657,3]
[387258816,1758665441309,-400.0,0.00024657,3]
[387258817,1758665441318,-400.0,0.00024657,3]
[387258818,1758665441327,-485.50139298,0.00024657,3]
[387258819,1758665441337,-400.0,0.00024657,3]
[387258820,1758665441346,-400.0,0.00024657,3]
[387258821,1758665441356,-400.0,0.00024657,3]
[387258822,1758665441365,-400.0,0.00024657,3]
[387258823,1758665441374,-400.0,0.00024657,3]
[387258824,1758665441383,-400.0,0.00024657,3]
[387258825,1758665441393,-400.0,0.00024657,3]
[387258826,1758665441402,-400.0,0.00024657,3]
[387258827,1758665441412,-400.0,0.00024657,3]
[387258828,1758665441422,-634.05107312,0.00024657,3]
[387258829,1758665441431,-400.0,0.00024657,3]
[387258830,1758665441441,-400.0,0.00024657,3]
[387258831,1758665441450,-400.0,0.00024657,3]
[387258832,1758665441460,-441.33704466,0.00024657,3]
[387258833,1758665441469,-400.0,0.00024657,3]
[387258834,1758665441478,-535.22,0.00024657,3]
[387258835,1758665441487,-400.21523796,0.00024657,3]
[387258836,1758665441497,-400.0,0.00024657,3]
[387258837,1758665441506,-400.0,0.00024657,3]
[387258838,1758665441515,-400.0,0.00024657,3]
[387258839,1758665441525,-831.63,0.00024657,3]
[387258840,1758665441534,-400.0,0.00024657,3]
[387258841,1758665441544,-400.0,0.00024657,3]
[387258842,1758665441553,-400.0,0.00024657,3]
[387258843,1758665441563,-400.0,0.00024657,3]
[387258844,1758665441572,-400.0,0.00024657,3]
[387258845,1758665441581,-400.0,0.00024657,3]
[387258846,1758665441591,-400.0,0.00024657,3]
[387258847,1758665441600,-400.0,0.00024657,3]
[387258848,1758665441609,-400.0,0.00024657,3]
[387258849,1758665441619,-400.0,0.00024657,3]
[387258850,1758665441628,-400.0,0.00024657,3]
[387258851,1758665441637,-229.86850107,0.00024657,3]
[387258852,1758665441646,-400.0,0.00024657,3]
[387258853,1758665441654,-541.71,0.00024657,3]
[387258854,1758665441663,-400.0,0.00024657,3]
[387258855,1758665441672,-400.0,0.00024657,3]
[387258856,1758665441680,-400.0,0.00024657,3]
[387258857,1758665441689,-197.56831092,0.00024657,3]
[387258858,1758665441699,-400.0,0.00024657,3]
[387258859,1758665441708,-400.0,0.00024657,3]
[387258860,1758665441717,-400.0,0.00024657,3]
[387258861,1758665441726,-400.0,0.00024657,3]
[387258862,1758665441735,-1077.98,0.00024657,3]
[387258863,1758665441744,-400.0,0.00024657,3]
[387258864,1758665441754,-400.0,0.00024657,3]
[387258865,1758665441763,-402.29,0.00024657,3]
[387258866,1758665441772,-400.0,0.00024657,3]
[387258867,1758665441782,-400.0,0.00024657,3]
[387258868,1758665441791,-400.0,0.00024657,3]
[387258869,1758665441802,-786.25,0.00024657,3]
[387258870,1758665441811,-400.0,0.00024657,3]
[387258871,1758665441820,-400.0,0.00024657,3]
[387258872,1758665441830,-400.0,0.00024657,3]
[387258873,1758665441840,-400.0,0.00024657,3]
[387258874,1758665441849,-400.0,0.00024657,3]
[387258875,1758665441859,-400.0,0.00024657,3]
[387258876,1758665441868,-400.0,0.00024657,3]
[387258877,1758665441880,-400.0,0.00024657,3]
[387258878,1758665441889,-400.0,0.00024657,3]
[387258879,1758665441899,-400.0,0.00024657,3]
[387258880,1758665441909,-400.0,0.00024657,3]
[387258885,1758665442162,-400.0,0.00024657,3]
[387258888,1758665442172,-400.0,0.00024657,3]
[387258890,1758665442181,-400.0,0.00024657,3]
[387258892,1758665442190,-405.02166467,0.00024657,3]
[387258894,1758665442200,-406.88117681,0.00024657,3]
[387258896,1758665442209,-400.0,0.00024657,3]
[387258898,1758665442218,-400.0,0.00024657,3]
[387258900,1758665442227,-400.0,0.00024657,3]
[387258904,1758665442237,-400.0,0.00024657,3]
[387258906,1758665442247,-400.0,0.00024657,3]
[387258908,1758665442256,-471.36515372,0.00024657,3]
[387258910,1758665442264,-965.08,0.00024657,3]
[387258912,1758665442273,-400.0,0.00024657,3]
[387258914,1758665442282,-400.0,0.00024657,3]
[387258916,1758665442292,-400.0,0.00024657,3]
[387258918,1758665442301,-400.0,0.00024657,3]
[387258920,1758665442310,-400.0,0.00024657,3]
[387258922,1758665442319,-400.0,0.00024657,3]
[387258925,1758665442328,-400.0,0.00024657,3]
[387258928,1758665442338,-400.0,0.00024657,3]
[387258930,1758665442347,-400.0,0.00024657,3]
[387258932,1758665442356,-400.0,0.00024657,3]
[387258934,1758665442365,-180.13552095,0.00024657,3]
[387258936,1758665442374,-400.0,0.00024657,3]
[387258938,1758665442383,-275.36583344,0.00024657,3]
[387258940,1758665442392,-688.62,0.00024657,3]
[387258942,1758665442402,-400.0,0.00024657,3]
[387258944,1758665442412,-400.0,0.00024657,3]
[387258946,1758665442421,-400.0,0.00024657,3]
[387258948,1758665442430,-400.0,0.00024657,3]
[387258950,1758665442439,-400.0,0.00024657,3]
[387258952,1758665442448,-400.0,0.00024657,3]
[387258954,1758665442458,-400.0,0.00024657,3]
[387258956,1758665442467,-400.0,0.00024657,3]
[387258958,1758665442476,-400.0,0.00024657,3]
[387258960,1758665442484,-400.0,0.00024657,3]
[387258962,1758665442493,-42.56922774,0.00024657,3]
[387258997,1758665445828,-367.23077226,0.00024657,3]
[387258998,1758665445838,-400.0,0.00024657,3]
[387258999,1758665445849,-400.0,0.00024657,3]
[387259000,1758665445858,-400.0,0.00024657,3]
[387259001,1758665445868,-400.0,0.00024657,3]
[387259002,1758665445878,-400.0,0.00024657,3]
[387259004,1758665445887,-400.0,0.00024657,3]
[387259005,1758665445897,-400.0,0.00024657,3]
[387259006,1758665445906,-400.0,0.00024657,3]
[387259007,1758665445916,-628.14,0.00024657,3]
[387259008,1758665445926,-400.0,0.00024657,3]
[387259009,1758665445935,-935.77,0.00024657,3]
[387259010,1758665445944,-500.0,0.00024657,3]
[387259011,1758665445954,-459.0974636,0.00024657,3]
[387259012,1758665445964,-78.94097174,0.00024657,3]
[387259013,1758665446006,-1400.73902826,0.00024657,3]
[387259014,1758665446016,-378.14380472,0.00024657,3]
[387259015,1758665446026,-400.0,0.00024657,3]
[387259016,1758665446036,-400.0,0.00024657,3]
[387259017,1758665446045,-400.0,0.00024657,3]
[387259018,1758665446055,-400.0,0.00024657,3]
[387259019,1758665446064,-400.0,0.00024657,3]
[387259020,1758665446073,-400.0,0.00024657,3]
[387259021,1758665446083,-400.0,0.00024657,3]